Workbook

Sheet Итоги бюджета за истекший год
A2: Сравнение бюджета с фактическими данными за 2005 год
A4: Код главной книги | B4: Название счета | C4: Фактические данные | D4: Бюджет | E4: Остаток (руб.) | F4: Остаток (%)
A6: 1000 | B6: Реклама | C6: ='Сводка ежемесячных расходов'!O6 -> 900,900.00р. | D6: 100,000.00р. | E6: =SUM(+D6-C6) -> -800,900.00р. | F6: =SUM(E6/D6) -> -800.90%
A8: 2000 | B8: Офисное оборудование | C8: ='Сводка ежемесячных расходов'!O8 -> 0 | D8: 100,000.00р. | E8: =SUM(+D8-C8) -> 100,000.00р. | F8: =SUM(E8/D8) -> 100.00%
A10: 3000 | B10: Принтеры | C10: ='Сводка ежемесячных расходов'!O10 -> 0 | D10: 100,000.00р. | E10: =SUM(+D10-C10) -> 100,000.00р. | F10: =SUM(E10/D10) -> 100.00%
A12: 4000 | B12: Затраты на серверы | C12: ='Сводка ежемесячных расходов'!O12 -> 0 | D12: 100,000.00р. | E12: =SUM(+D12-C12) -> 100,000.00р. | F12: =SUM(E12/D12) -> 100.00%
A14: 5000 | B14: Принадлежности | C14: ='Сводка ежемесячных расходов'!O14 -> 0 | D14: 50,000.00р. | E14: =SUM(+D14-C14) -> 50,000.00р. | F14: =SUM(E14/D14) -> 100.00%
A16: 6000 | B16: Затраты на клиентов | C16: ='Сводка ежемесячных расходов'!O16 -> 0 | D16: 25,000.00р. | E16: =SUM(+D16-C16) -> 25,000.00р. | F16: =SUM(E16/D16) -> 100.00%
A18: 7000 | B18: Компьютеры | C18: ='Сводка ежемесячных расходов'!O18 -> 30,000.00р. | D18: 75,000.00р. | E18: =SUM(+D18-C18) -> 45,000.00р. | F18: =SUM(E18/D18) -> 60.00%
A20: 8000 | B20: План медицинского обслуживания | C20: ='Сводка ежемесячных расходов'!O20 -> 0 | D20: 65,000.00р. | E20: =SUM(+D20-C20) -> 65,000.00р. | F20: =SUM(E20/D20) -> 100.00%
A22: 9000 | B22: Затраты на строительство | C22: ='Сводка ежемесячных расходов'!O22 -> 0 | D22: 125,000.00р. | E22: =SUM(+D22-C22) -> 125,000.00р. | F22: =SUM(E22/D22) -> 100.00%
A24: 10000 | B24: Маркетинг | C24: ='Сводка ежемесячных расходов'!O24 -> 0 | D24: 100,000.00р. | E24: =SUM(+D24-C24) -> 100,000.00р. | F24: =SUM(E24/D24) -> 100.00%
A26: 11000 | B26: Благотворительность | C26: ='Сводка ежемесячных расходов'!O26 -> 30,000.00р. | D26: 250,000.00р. | E26: =SUM(+D26-C26) -> 220,000.00р. | F26: =SUM(E26/D26) -> 88.00%
A28: 12000 | B28: Спонсорство | C28: ='Сводка ежемесячных расходов'!O28 -> 12,000.00р. | D28: 50,000.00р. | E28: =SUM(+D28-C28) -> 38,000.00р. | F28: =SUM(E28/D28) -> 76.00%
B30: ИТОГО | C30: =SUM(C6:C28) -> 972,900.00р. | D30: =SUM(D6:D28) -> 1,140,000.00р. | E30: =SUM(E6:E28) -> 167,100.00р. | F30: =SUM(E30/D30) -> 14.66%

Sheet Сводка ежемесячных расходов
A2: Ежемесячные расходы в 2005 г.
A4: Код главной книги | B4: Название счета | C4: 2005-01-01 | D4: 2005-02-01 | E4: 2005-03-01 | F4: 2005-04-01 | G4: 2005-05-01 | H4: 2005-06-01 | I4: 2005-07-01 | J4: 2005-08-01 | K4: 2005-09-01 | L4: 2005-10-01 | M4: 2005-11-01 | N4: 2005-12-01 | O4: 2005
A6: 1000 | B6: Реклама | C6: =SUMIF('Благотворительность,Спонсорство'!$L:$L,"="&($A6&TEXT(C$4,"ммм-гг")),'Благотворительность,Спонсорство'!$D:$D)+SUMIF('Расходы по категориям'!$J:$J,"="&($A6&TEXT(C$4,"ммм-гг")),'Расходы по категориям'!$E:$E) -> 75,075.00р. | D6: =SUMIF('Благотворительность,Спонсорство'!$L:$L,"="&($A6&TEXT(D$4,"ммм-гг")),'Благотворительность,Спонсорство'!$D:$D)+SUMIF('Расходы по категориям'!$J:$J,"="&($A6&TEXT(D$4,"ммм-гг")),'Расходы по категориям'!$E:$E) -> 75,075.00р. | E6: =SUMIF('Благотворительность,Спонсорство'!$L:$L,"="&($A6&TEXT(E$4,"ммм-гг")),'Благотворительность,Спонсорство'!$D:$D)+SUMIF('Расходы по категориям'!$J:$J,"="&($A6&TEXT(E$4,"ммм-гг")),'Расходы по категориям'!$E:$E) -> 75,075.00р. | F6: =SUMIF('Благотворительность,Спонсорство'!$L:$L,"="&($A6&TEXT(F$4,"ммм-гг")),'Благотворительность,Спонсорство'!$D:$D)+SUMIF('Расходы по категориям'!$J:$J,"="&($A6&TEXT(F$4,"ммм-гг")),'Расходы по категориям'!$E:$E) -> 75,075.00р. | G6: =SUMIF('Благотворительность,Спонсорство'!$L:$L,"="&($A6&TEXT(G$4,"ммм-гг")),'Благотворительность,Спонсорство'!$D:$D)+SUMIF('Расходы по категориям'!$J:$J,"="&($A6&TEXT(G$4,"ммм-гг")),'Расходы по категориям'!$E:$E) -> 75,075.00р. | H6: =SUMIF('Благотворительность,Спонсорство'!$L:$L,"="&($A6&TEXT(H$4,"ммм-гг")),'Благотворительность,Спонсорство'!$D:$D)+SUMIF('Расходы по категориям'!$J:$J,"="&($A6&TEXT(H$4,"ммм-гг")),'Расходы по категориям'!$E:$E) -> 75,075.00р. | I6: =SUMIF('Благотворительность,Спонсорство'!$L:$L,"="&($A6&TEXT(I$4,"ммм-гг")),'Благотворительность,Спонсорство'!$D:$D)+SUMIF('Расходы по категориям'!$J:$J,"="&($A6&TEXT(I$4,"ммм-гг")),'Расходы по категориям'!$E:$E) -> 75,075.00р. | J6: =SUMIF('Благотворительность,Спонсорство'!$L:$L,"="&($A6&TEXT(J$4,"ммм-гг")),'Благотворительность,Спонсорство'!$D:$D)+SUMIF('Расходы по категориям'!$J:$J,"="&($A6&TEXT(J$4,"ммм-гг")),'Расходы по категориям'!$E:$E) -> 75,075.00р. | K6: =SUMIF('Благотворительность,Спонсорство'!$L:$L,"="&($A6&TEXT(K$4,"ммм-гг")),'Благотворительность,Спонсорство'!$D:$D)+SUMIF('Расходы по категориям'!$J:$J,"="&($A6&TEXT(K$4,"ммм-гг")),'Расходы по категориям'!$E:$E) -> 75,075.00р. | L6: =SUMIF('Благотворительность,Спонсорство'!$L:$L,"="&($A6&TEXT(L$4,"ммм-гг")),'Благотворительность,Спонсорство'!$D:$D)+SUMIF('Расходы по категориям'!$J:$J,"="&($A6&TEXT(L$4,"ммм-гг")),'Расходы по категориям'!$E:$E) -> 75,075.00р. | M6: =SUMIF('Благотворительность,Спонсорство'!$L:$L,"="&($A6&TEXT(M$4,"ммм-гг")),'Благотворительность,Спонсорство'!$D:$D)+SUMIF('Расходы по категориям'!$J:$J,"="&($A6&TEXT(M$4,"ммм-гг")),'Расходы по категориям'!$E:$E) -> 75,075.00р. | N6: =SUMIF('Благотворительность,Спонсорство'!$L:$L,"="&($A6&TEXT(N$4,"ммм-гг")),'Благотворительность,Спонсорство'!$D:$D)+SUMIF('Расходы по категориям'!$J:$J,"="&($A6&TEXT(N$4,"ммм-гг")),'Расходы по категориям'!$E:$E) -> 75,075.00р. | O6: =SUM(C6:N6) -> 900,900.00р.
A8: 2000 | B8: Офисное оборудование | C8: =SUMIF('Благотворительность,Спонсорство'!$L:$L,"="&($A8&TEXT(C$4,"ммм-гг")),'Благотворительность,Спонсорство'!$D:$D)+SUMIF('Расходы по категориям'!$J:$J,"="&($A8&TEXT(C$4,"ммм-гг")),'Расходы по категориям'!$E:$E) -> 0 | D8: =SUMIF('Благотворительность,Спонсорство'!$L:$L,"="&($A8&TEXT(D$4,"ммм-гг")),'Благотворительность,Спонсорство'!$D:$D)+SUMIF('Расходы по категориям'!$J:$J,"="&($A8&TEXT(D$4,"ммм-гг")),'Расходы по категориям'!$E:$E) -> 0 | E8: =SUMIF('Благотворительность,Спонсорство'!$L:$L,"="&($A8&TEXT(E$4,"ммм-гг")),'Благотворительность,Спонсорство'!$D:$D)+SUMIF('Расходы по категориям'!$J:$J,"="&($A8&TEXT(E$4,"ммм-гг")),'Расходы по категориям'!$E:$E) -> 0 | F8: =SUMIF('Благотворительность,Спонсорство'!$L:$L,"="&($A8&TEXT(F$4,"ммм-гг")),'Благотворительность,Спонсорство'!$D:$D)+SUMIF('Расходы по категориям'!$J:$J,"="&($A8&TEXT(F$4,"ммм-гг")),'Расходы по категориям'!$E:$E) -> 0 | G8: =SUMIF('Благотворительность,Спонсорство'!$L:$L,"="&($A8&TEXT(G$4,"ммм-гг")),'Благотворительность,Спонсорство'!$D:$D)+SUMIF('Расходы по категориям'!$J:$J,"="&($A8&TEXT(G$4,"ммм-гг")),'Расходы по категориям'!$E:$E) -> 0 | H8: =SUMIF('Благотворительность,Спонсорство'!$L:$L,"="&($A8&TEXT(H$4,"ммм-гг")),'Благотворительность,Спонсорство'!$D:$D)+SUMIF('Расходы по категориям'!$J:$J,"="&($A8&TEXT(H$4,"ммм-гг")),'Расходы по категориям'!$E:$E) -> 0 | I8: =SUMIF('Благотворительность,Спонсорство'!$L:$L,"="&($A8&TEXT(I$4,"ммм-гг")),'Благотворительность,Спонсорство'!$D:$D)+SUMIF('Расходы по категориям'!$J:$J,"="&($A8&TEXT(I$4,"ммм-гг")),'Расходы по категориям'!$E:$E) -> 0 | J8: =SUMIF('Благотворительность,Спонсорство'!$L:$L,"="&($A8&TEXT(J$4,"ммм-гг")),'Благотворительность,Спонсорство'!$D:$D)+SUMIF('Расходы по категориям'!$J:$J,"="&($A8&TEXT(J$4,"ммм-гг")),'Расходы по категориям'!$E:$E) -> 0 | K8: =SUMIF('Благотворительность,Спонсорство'!$L:$L,"="&($A8&TEXT(K$4,"ммм-гг")),'Благотворительность,Спонсорство'!$D:$D)+SUMIF('Расходы по категориям'!$J:$J,"="&($A8&TEXT(K$4,"ммм-гг")),'Расходы по категориям'!$E:$E) -> 0 | L8: =SUMIF('Благотворительность,Спонсорство'!$L:$L,"="&($A8&TEXT(L$4,"ммм-гг")),'Благотворительность,Спонсорство'!$D:$D)+SUMIF('Расходы по категориям'!$J:$J,"="&($A8&TEXT(L$4,"ммм-гг")),'Расходы по категориям'!$E:$E) -> 0 | M8: =SUMIF('Благотворительность,Спонсорство'!$L:$L,"="&($A8&TEXT(M$4,"ммм-гг")),'Благотворительность,Спонсорство'!$D:$D)+SUMIF('Расходы по категориям'!$J:$J,"="&($A8&TEXT(M$4,"ммм-гг")),'Расходы по категориям'!$E:$E) -> 0 | N8: =SUMIF('Благотворительность,Спонсорство'!$L:$L,"="&($A8&TEXT(N$4,"ммм-гг")),'Благотворительность,Спонсорство'!$D:$D)+SUMIF('Расходы по категориям'!$J:$J,"="&($A8&TEXT(N$4,"ммм-гг")),'Расходы по категориям'!$E:$E) -> 0 | O8: =SUM(C8:N8) -> 0
A10: 3000 | B10: Принтеры | C10: =SUMIF('Благотворительность,Спонсорство'!$L:$L,"="&($A10&TEXT(C$4,"ммм-гг")),'Благотворительность,Спонсорство'!$D:$D)+SUMIF('Расходы по категориям'!$J:$J,"="&($A10&TEXT(C$4,"ммм-гг")),'Расходы по категориям'!$E:$E) -> 0 | D10: =SUMIF('Благотворительность,Спонсорство'!$L:$L,"="&($A10&TEXT(D$4,"ммм-гг")),'Благотворительность,Спонсорство'!$D:$D)+SUMIF('Расходы по категориям'!$J:$J,"="&($A10&TEXT(D$4,"ммм-гг")),'Расходы по категориям'!$E:$E) -> 0 | E10: =SUMIF('Благотворительность,Спонсорство'!$L:$L,"="&($A10&TEXT(E$4,"ммм-гг")),'Благотворительность,Спонсорство'!$D:$D)+SUMIF('Расходы по категориям'!$J:$J,"="&($A10&TEXT(E$4,"ммм-гг")),'Расходы по категориям'!$E:$E) -> 0 | F10: =SUMIF('Благотворительность,Спонсорство'!$L:$L,"="&($A10&TEXT(F$4,"ммм-гг")),'Благотворительность,Спонсорство'!$D:$D)+SUMIF('Расходы по категориям'!$J:$J,"="&($A10&TEXT(F$4,"ммм-гг")),'Расходы по категориям'!$E:$E) -> 0 | G10: =SUMIF('Благотворительность,Спонсорство'!$L:$L,"="&($A10&TEXT(G$4,"ммм-гг")),'Благотворительность,Спонсорство'!$D:$D)+SUMIF('Расходы по категориям'!$J:$J,"="&($A10&TEXT(G$4,"ммм-гг")),'Расходы по категориям'!$E:$E) -> 0 | H10: =SUMIF('Благотворительность,Спонсорство'!$L:$L,"="&($A10&TEXT(H$4,"ммм-гг")),'Благотворительность,Спонсорство'!$D:$D)+SUMIF('Расходы по категориям'!$J:$J,"="&($A10&TEXT(H$4,"ммм-гг")),'Расходы по категориям'!$E:$E) -> 0 | I10: =SUMIF('Благотворительность,Спонсорство'!$L:$L,"="&($A10&TEXT(I$4,"ммм-гг")),'Благотворительность,Спонсорство'!$D:$D)+SUMIF('Расходы по категориям'!$J:$J,"="&($A10&TEXT(I$4,"ммм-гг")),'Расходы по категориям'!$E:$E) -> 0 | J10: =SUMIF('Благотворительность,Спонсорство'!$L:$L,"="&($A10&TEXT(J$4,"ммм-гг")),'Благотворительность,Спонсорство'!$D:$D)+SUMIF('Расходы по категориям'!$J:$J,"="&($A10&TEXT(J$4,"ммм-гг")),'Расходы по категориям'!$E:$E) -> 0 | K10: =SUMIF('Благотворительность,Спонсорство'!$L:$L,"="&($A10&TEXT(K$4,"ммм-гг")),'Благотворительность,Спонсорство'!$D:$D)+SUMIF('Расходы по категориям'!$J:$J,"="&($A10&TEXT(K$4,"ммм-гг")),'Расходы по категориям'!$E:$E) -> 0 | L10: =SUMIF('Благотворительность,Спонсорство'!$L:$L,"="&($A10&TEXT(L$4,"ммм-гг")),'Благотворительность,Спонсорство'!$D:$D)+SUMIF('Расходы по категориям'!$J:$J,"="&($A10&TEXT(L$4,"ммм-гг")),'Расходы по категориям'!$E:$E) -> 0 | M10: =SUMIF('Благотворительность,Спонсорство'!$L:$L,"="&($A10&TEXT(M$4,"ммм-гг")),'Благотворительность,Спонсорство'!$D:$D)+SUMIF('Расходы по категориям'!$J:$J,"="&($A10&TEXT(M$4,"ммм-гг")),'Расходы по категориям'!$E:$E) -> 0 | N10: =SUMIF('Благотворительность,Спонсорство'!$L:$L,"="&($A10&TEXT(N$4,"ммм-гг")),'Благотворительность,Спонсорство'!$D:$D)+SUMIF('Расходы по категориям'!$J:$J,"="&($A10&TEXT(N$4,"ммм-гг")),'Расходы по категориям'!$E:$E) -> 0 | O10: =SUM(C10:N10) -> 0
A12: 4000 | B12: Затраты на серверы | C12: =SUMIF('Благотворительность,Спонсорство'!$L:$L,"="&($A12&TEXT(C$4,"ммм-гг")),'Благотворительность,Спонсорство'!$D:$D)+SUMIF('Расходы по категориям'!$J:$J,"="&($A12&TEXT(C$4,"ммм-гг")),'Расходы по категориям'!$E:$E) -> 0 | D12: =SUMIF('Благотворительность,Спонсорство'!$L:$L,"="&($A12&TEXT(D$4,"ммм-гг")),'Благотворительность,Спонсорство'!$D:$D)+SUMIF('Расходы по категориям'!$J:$J,"="&($A12&TEXT(D$4,"ммм-гг")),'Расходы по категориям'!$E:$E) -> 0 | E12: =SUMIF('Благотворительность,Спонсорство'!$L:$L,"="&($A12&TEXT(E$4,"ммм-гг")),'Благотворительность,Спонсорство'!$D:$D)+SUMIF('Расходы по категориям'!$J:$J,"="&($A12&TEXT(E$4,"ммм-гг")),'Расходы по категориям'!$E:$E) -> 0 | F12: 0 | G12: =SUMIF('Благотворительность,Спонсорство'!$L:$L,"="&($A12&TEXT(G$4,"ммм-гг")),'Благотворительность,Спонсорство'!$D:$D)+SUMIF('Расходы по категориям'!$J:$J,"="&($A12&TEXT(G$4,"ммм-гг")),'Расходы по категориям'!$E:$E) -> 0 | H12: =SUMIF('Благотворительность,Спонсорство'!$L:$L,"="&($A12&TEXT(H$4,"ммм-гг")),'Благотворительность,Спонсорство'!$D:$D)+SUMIF('Расходы по категориям'!$J:$J,"="&($A12&TEXT(H$4,"ммм-гг")),'Расходы по категориям'!$E:$E) -> 0 | I12: =SUMIF('Благотворительность,Спонсорство'!$L:$L,"="&($A12&TEXT(I$4,"ммм-гг")),'Благотворительность,Спонсорство'!$D:$D)+SUMIF('Расходы по категориям'!$J:$J,"="&($A12&TEXT(I$4,"ммм-гг")),'Расходы по категориям'!$E:$E) -> 0 | J12: =SUMIF('Благотворительность,Спонсорство'!$L:$L,"="&($A12&TEXT(J$4,"ммм-гг")),'Благотворительность,Спонсорство'!$D:$D)+SUMIF('Расходы по категориям'!$J:$J,"="&($A12&TEXT(J$4,"ммм-гг")),'Расходы по категориям'!$E:$E) -> 0 | K12: =SUMIF('Благотворительность,Спонсорство'!$L:$L,"="&($A12&TEXT(K$4,"ммм-гг")),'Благотворительность,Спонсорство'!$D:$D)+SUMIF('Расходы по категориям'!$J:$J,"="&($A12&TEXT(K$4,"ммм-гг")),'Расходы по категориям'!$E:$E) -> 0 | L12: =SUMIF('Благотворительность,Спонсорство'!$L:$L,"="&($A12&TEXT(L$4,"ммм-гг")),'Благотворительность,Спонсорство'!$D:$D)+SUMIF('Расходы по категориям'!$J:$J,"="&($A12&TEXT(L$4,"ммм-гг")),'Расходы по категориям'!$E:$E) -> 0 | M12: =SUMIF('Благотворительность,Спонсорство'!$L:$L,"="&($A12&TEXT(M$4,"ммм-гг")),'Благотворительность,Спонсорство'!$D:$D)+SUMIF('Расходы по категориям'!$J:$J,"="&($A12&TEXT(M$4,"ммм-гг")),'Расходы по категориям'!$E:$E) -> 0 | N12: =SUMIF('Благотворительность,Спонсорство'!$L:$L,"="&($A12&TEXT(N$4,"ммм-гг")),'Благотворительность,Спонсорство'!$D:$D)+SUMIF('Расходы по категориям'!$J:$J,"="&($A12&TEXT(N$4,"ммм-гг")),'Расходы по категориям'!$E:$E) -> 0 | O12: =SUM(C12:N12) -> 0
A14: 5000 | B14: Принадлежности | C14: =SUMIF('Благотворительность,Спонсорство'!$L:$L,"="&($A14&TEXT(C$4,"ммм-гг")),'Благотворительность,Спонсорство'!$D:$D)+SUMIF('Расходы по категориям'!$J:$J,"="&($A14&TEXT(C$4,"ммм-гг")),'Расходы по категориям'!$E:$E) -> 0 | D14: =SUMIF('Благотворительность,Спонсорство'!$L:$L,"="&($A14&TEXT(D$4,"ммм-гг")),'Благотворительность,Спонсорство'!$D:$D)+SUMIF('Расходы по категориям'!$J:$J,"="&($A14&TEXT(D$4,"ммм-гг")),'Расходы по категориям'!$E:$E) -> 0 | E14: =SUMIF('Благотворительность,Спонсорство'!$L:$L,"="&($A14&TEXT(E$4,"ммм-гг")),'Благотворительность,Спонсорство'!$D:$D)+SUMIF('Расходы по категориям'!$J:$J,"="&($A14&TEXT(E$4,"ммм-гг")),'Расходы по категориям'!$E:$E) -> 0 | F14: =SUMIF('Благотворительность,Спонсорство'!$L:$L,"="&($A14&TEXT(F$4,"ммм-гг")),'Благотворительность,Спонсорство'!$D:$D)+SUMIF('Расходы по категориям'!$J:$J,"="&($A14&TEXT(F$4,"ммм-гг")),'Расходы по категориям'!$E:$E) -> 0 | G14: =SUMIF('Благотворительность,Спонсорство'!$L:$L,"="&($A14&TEXT(G$4,"ммм-гг")),'Благотворительность,Спонсорство'!$D:$D)+SUMIF('Расходы по категориям'!$J:$J,"="&($A14&TEXT(G$4,"ммм-гг")),'Расходы по категориям'!$E:$E) -> 0 | H14: =SUMIF('Благотворительность,Спонсорство'!$L:$L,"="&($A14&TEXT(H$4,"ммм-гг")),'Благотворительность,Спонсорство'!$D:$D)+SUMIF('Расходы по категориям'!$J:$J,"="&($A14&TEXT(H$4,"ммм-гг")),'Расходы по категориям'!$E:$E) -> 0 | I14: =SUMIF('Благотворительность,Спонсорство'!$L:$L,"="&($A14&TEXT(I$4,"ммм-гг")),'Благотворительность,Спонсорство'!$D:$D)+SUMIF('Расходы по категориям'!$J:$J,"="&($A14&TEXT(I$4,"ммм-гг")),'Расходы по категориям'!$E:$E) -> 0 | J14: =SUMIF('Благотворительность,Спонсорство'!$L:$L,"="&($A14&TEXT(J$4,"ммм-гг")),'Благотворительность,Спонсорство'!$D:$D)+SUMIF('Расходы по категориям'!$J:$J,"="&($A14&TEXT(J$4,"ммм-гг")),'Расходы по категориям'!$E:$E) -> 0 | K14: =SUMIF('Благотворительность,Спонсорство'!$L:$L,"="&($A14&TEXT(K$4,"ммм-гг")),'Благотворительность,Спонсорство'!$D:$D)+SUMIF('Расходы по категориям'!$J:$J,"="&($A14&TEXT(K$4,"ммм-гг")),'Расходы по категориям'!$E:$E) -> 0 | L14: =SUMIF('Благотворительность,Спонсорство'!$L:$L,"="&($A14&TEXT(L$4,"ммм-гг")),'Благотворительность,Спонсорство'!$D:$D)+SUMIF('Расходы по категориям'!$J:$J,"="&($A14&TEXT(L$4,"ммм-гг")),'Расходы по категориям'!$E:$E) -> 0 | M14: =SUMIF('Благотворительность,Спонсорство'!$L:$L,"="&($A14&TEXT(M$4,"ммм-гг")),'Благотворительность,Спонсорство'!$D:$D)+SUMIF('Расходы по категориям'!$J:$J,"="&($A14&TEXT(M$4,"ммм-гг")),'Расходы по категориям'!$E:$E) -> 0 | N14: =SUMIF('Благотворительность,Спонсорство'!$L:$L,"="&($A14&TEXT(N$4,"ммм-гг")),'Благотворительность,Спонсорство'!$D:$D)+SUMIF('Расходы по категориям'!$J:$J,"="&($A14&TEXT(N$4,"ммм-гг")),'Расходы по категориям'!$E:$E) -> 0 | O14: =SUM(C14:N14) -> 0
A16: 6000 | B16: Затраты на клиентов | C16: =SUMIF('Благотворительность,Спонсорство'!$L:$L,"="&($A16&TEXT(C$4,"ммм-гг")),'Благотворительность,Спонсорство'!$D:$D)+SUMIF('Расходы по категориям'!$J:$J,"="&($A16&TEXT(C$4,"ммм-гг")),'Расходы по категориям'!$E:$E) -> 0 | D16: =SUMIF('Благотворительность,Спонсорство'!$L:$L,"="&($A16&TEXT(D$4,"ммм-гг")),'Благотворительность,Спонсорство'!$D:$D)+SUMIF('Расходы по категориям'!$J:$J,"="&($A16&TEXT(D$4,"ммм-гг")),'Расходы по категориям'!$E:$E) -> 0 | E16: =SUMIF('Благотворительность,Спонсорство'!$L:$L,"="&($A16&TEXT(E$4,"ммм-гг")),'Благотворительность,Спонсорство'!$D:$D)+SUMIF('Расходы по категориям'!$J:$J,"="&($A16&TEXT(E$4,"ммм-гг")),'Расходы по категориям'!$E:$E) -> 0 | F16: =SUMIF('Благотворительность,Спонсорство'!$L:$L,"="&($A16&TEXT(F$4,"ммм-гг")),'Благотворительность,Спонсорство'!$D:$D)+SUMIF('Расходы по категориям'!$J:$J,"="&($A16&TEXT(F$4,"ммм-гг")),'Расходы по категориям'!$E:$E) -> 0 | G16: =SUMIF('Благотворительность,Спонсорство'!$L:$L,"="&($A16&TEXT(G$4,"ммм-гг")),'Благотворительность,Спонсорство'!$D:$D)+SUMIF('Расходы по категориям'!$J:$J,"="&($A16&TEXT(G$4,"ммм-гг")),'Расходы по категориям'!$E:$E) -> 0 | H16: =SUMIF('Благотворительность,Спонсорство'!$L:$L,"="&($A16&TEXT(H$4,"ммм-гг")),'Благотворительность,Спонсорство'!$D:$D)+SUMIF('Расходы по категориям'!$J:$J,"="&($A16&TEXT(H$4,"ммм-гг")),'Расходы по категориям'!$E:$E) -> 0 | I16: =SUMIF('Благотворительность,Спонсорство'!$L:$L,"="&($A16&TEXT(I$4,"ммм-гг")),'Благотворительность,Спонсорство'!$D:$D)+SUMIF('Расходы по категориям'!$J:$J,"="&($A16&TEXT(I$4,"ммм-гг")),'Расходы по категориям'!$E:$E) -> 0 | J16: =SUMIF('Благотворительность,Спонсорство'!$L:$L,"="&($A16&TEXT(J$4,"ммм-гг")),'Благотворительность,Спонсорство'!$D:$D)+SUMIF('Расходы по категориям'!$J:$J,"="&($A16&TEXT(J$4,"ммм-гг")),'Расходы по категориям'!$E:$E) -> 0 | K16: =SUMIF('Благотворительность,Спонсорство'!$L:$L,"="&($A16&TEXT(K$4,"ммм-гг")),'Благотворительность,Спонсорство'!$D:$D)+SUMIF('Расходы по категориям'!$J:$J,"="&($A16&TEXT(K$4,"ммм-гг")),'Расходы по категориям'!$E:$E) -> 0 | L16: =SUMIF('Благотворительность,Спонсорство'!$L:$L,"="&($A16&TEXT(L$4,"ммм-гг")),'Благотворительность,Спонсорство'!$D:$D)+SUMIF('Расходы по категориям'!$J:$J,"="&($A16&TEXT(L$4,"ммм-гг")),'Расходы по категориям'!$E:$E) -> 0 | M16: =SUMIF('Благотворительность,Спонсорство'!$L:$L,"="&($A16&TEXT(M$4,"ммм-гг")),'Благотворительность,Спонсорство'!$D:$D)+SUMIF('Расходы по категориям'!$J:$J,"="&($A16&TEXT(M$4,"ммм-гг")),'Расходы по категориям'!$E:$E) -> 0 | N16: =SUMIF('Благотворительность,Спонсорство'!$L:$L,"="&($A16&TEXT(N$4,"ммм-гг")),'Благотворительность,Спонсорство'!$D:$D)+SUMIF('Расходы по категориям'!$J:$J,"="&($A16&TEXT(N$4,"ммм-гг")),'Расходы по категориям'!$E:$E) -> 0 | O16: =SUM(C16:N16) -> 0
A18: 7000 | B18: Компьютеры | C18: =SUMIF('Благотворительность,Спонсорство'!$L:$L,"="&($A18&TEXT(C$4,"ммм-гг")),'Благотворительность,Спонсорство'!$D:$D)+SUMIF('Расходы по категориям'!$J:$J,"="&($A18&TEXT(C$4,"ммм-гг")),'Расходы по категориям'!$E:$E) -> 2,500.00р. | D18: =SUMIF('Благотворительность,Спонсорство'!$L:$L,"="&($A18&TEXT(D$4,"ммм-гг")),'Благотворительность,Спонсорство'!$D:$D)+SUMIF('Расходы по категориям'!$J:$J,"="&($A18&TEXT(D$4,"ммм-гг")),'Расходы по категориям'!$E:$E) -> 2,500.00р. | E18: =SUMIF('Благотворительность,Спонсорство'!$L:$L,"="&($A18&TEXT(E$4,"ммм-гг")),'Благотворительность,Спонсорство'!$D:$D)+SUMIF('Расходы по категориям'!$J:$J,"="&($A18&TEXT(E$4,"ммм-гг")),'Расходы по категориям'!$E:$E) -> 2,500.00р. | F18: =SUMIF('Благотворительность,Спонсорство'!$L:$L,"="&($A18&TEXT(F$4,"ммм-гг")),'Благотворительность,Спонсорство'!$D:$D)+SUMIF('Расходы по категориям'!$J:$J,"="&($A18&TEXT(F$4,"ммм-гг")),'Расходы по категориям'!$E:$E) -> 2,500.00р. | G18: =SUMIF('Благотворительность,Спонсорство'!$L:$L,"="&($A18&TEXT(G$4,"ммм-гг")),'Благотворительность,Спонсорство'!$D:$D)+SUMIF('Расходы по категориям'!$J:$J,"="&($A18&TEXT(G$4,"ммм-гг")),'Расходы по категориям'!$E:$E) -> 2,500.00р. | H18: =SUMIF('Благотворительность,Спонсорство'!$L:$L,"="&($A18&TEXT(H$4,"ммм-гг")),'Благотворительность,Спонсорство'!$D:$D)+SUMIF('Расходы по категориям'!$J:$J,"="&($A18&TEXT(H$4,"ммм-гг")),'Расходы по категориям'!$E:$E) -> 2,500.00р. | I18: =SUMIF('Благотворительность,Спонсорство'!$L:$L,"="&($A18&TEXT(I$4,"ммм-гг")),'Благотворительность,Спонсорство'!$D:$D)+SUMIF('Расходы по категориям'!$J:$J,"="&($A18&TEXT(I$4,"ммм-гг")),'Расходы по категориям'!$E:$E) -> 2,500.00р. | J18: =SUMIF('Благотворительность,Спонсорство'!$L:$L,"="&($A18&TEXT(J$4,"ммм-гг")),'Благотворительность,Спонсорство'!$D:$D)+SUMIF('Расходы по категориям'!$J:$J,"="&($A18&TEXT(J$4,"ммм-гг")),'Расходы по категориям'!$E:$E) -> 2,500.00р. | K18: =SUMIF('Благотворительность,Спонсорство'!$L:$L,"="&($A18&TEXT(K$4,"ммм-гг")),'Благотворительность,Спонсорство'!$D:$D)+SUMIF('Расходы по категориям'!$J:$J,"="&($A18&TEXT(K$4,"ммм-гг")),'Расходы по категориям'!$E:$E) -> 2,500.00р. | L18: =SUMIF('Благотворительность,Спонсорство'!$L:$L,"="&($A18&TEXT(L$4,"ммм-гг")),'Благотворительность,Спонсорство'!$D:$D)+SUMIF('Расходы по категориям'!$J:$J,"="&($A18&TEXT(L$4,"ммм-гг")),'Расходы по категориям'!$E:$E) -> 2,500.00р. | M18: =SUMIF('Благотворительность,Спонсорство'!$L:$L,"="&($A18&TEXT(M$4,"ммм-гг")),'Благотворительность,Спонсорство'!$D:$D)+SUMIF('Расходы по категориям'!$J:$J,"="&($A18&TEXT(M$4,"ммм-гг")),'Расходы по категориям'!$E:$E) -> 2,500.00р. | N18: =SUMIF('Благотворительность,Спонсорство'!$L:$L,"="&($A18&TEXT(N$4,"ммм-гг")),'Благотворительность,Спонсорство'!$D:$D)+SUMIF('Расходы по категориям'!$J:$J,"="&($A18&TEXT(N$4,"ммм-гг")),'Расходы по категориям'!$E:$E) -> 2,500.00р. | O18: =SUM(C18:N18) -> 30,000.00р.
A20: 8000 | B20: План медицинского обслуживания | C20: =SUMIF('Благотворительность,Спонсорство'!$L:$L,"="&($A20&TEXT(C$4,"ммм-гг")),'Благотворительность,Спонсорство'!$D:$D)+SUMIF('Расходы по категориям'!$J:$J,"="&($A20&TEXT(C$4,"ммм-гг")),'Расходы по категориям'!$E:$E) -> 0 | D20: =SUMIF('Благотворительность,Спонсорство'!$L:$L,"="&($A20&TEXT(D$4,"ммм-гг")),'Благотворительность,Спонсорство'!$D:$D)+SUMIF('Расходы по категориям'!$J:$J,"="&($A20&TEXT(D$4,"ммм-гг")),'Расходы по категориям'!$E:$E) -> 0 | E20: =SUMIF('Благотворительность,Спонсорство'!$L:$L,"="&($A20&TEXT(E$4,"ммм-гг")),'Благотворительность,Спонсорство'!$D:$D)+SUMIF('Расходы по категориям'!$J:$J,"="&($A20&TEXT(E$4,"ммм-гг")),'Расходы по категориям'!$E:$E) -> 0 | F20: =SUMIF('Благотворительность,Спонсорство'!$L:$L,"="&($A20&TEXT(F$4,"ммм-гг")),'Благотворительность,Спонсорство'!$D:$D)+SUMIF('Расходы по категориям'!$J:$J,"="&($A20&TEXT(F$4,"ммм-гг")),'Расходы по категориям'!$E:$E) -> 0 | G20: =SUMIF('Благотворительность,Спонсорство'!$L:$L,"="&($A20&TEXT(G$4,"ммм-гг")),'Благотворительность,Спонсорство'!$D:$D)+SUMIF('Расходы по категориям'!$J:$J,"="&($A20&TEXT(G$4,"ммм-гг")),'Расходы по категориям'!$E:$E) -> 0 | H20: 0 | I20: =SUMIF('Благотворительность,Спонсорство'!$L:$L,"="&($A20&TEXT(I$4,"ммм-гг")),'Благотворительность,Спонсорство'!$D:$D)+SUMIF('Расходы по категориям'!$J:$J,"="&($A20&TEXT(I$4,"ммм-гг")),'Расходы по категориям'!$E:$E) -> 0 | J20: =SUMIF('Благотворительность,Спонсорство'!$L:$L,"="&($A20&TEXT(J$4,"ммм-гг")),'Благотворительность,Спонсорство'!$D:$D)+SUMIF('Расходы по категориям'!$J:$J,"="&($A20&TEXT(J$4,"ммм-гг")),'Расходы по категориям'!$E:$E) -> 0 | K20: =SUMIF('Благотворительность,Спонсорство'!$L:$L,"="&($A20&TEXT(K$4,"ммм-гг")),'Благотворительность,Спонсорство'!$D:$D)+SUMIF('Расходы по категориям'!$J:$J,"="&($A20&TEXT(K$4,"ммм-гг")),'Расходы по категориям'!$E:$E) -> 0 | L20: =SUMIF('Благотворительность,Спонсорство'!$L:$L,"="&($A20&TEXT(L$4,"ммм-гг")),'Благотворительность,Спонсорство'!$D:$D)+SUMIF('Расходы по категориям'!$J:$J,"="&($A20&TEXT(L$4,"ммм-гг")),'Расходы по категориям'!$E:$E) -> 0 | M20: =SUMIF('Благотворительность,Спонсорство'!$L:$L,"="&($A20&TEXT(M$4,"ммм-гг")),'Благотворительность,Спонсорство'!$D:$D)+SUMIF('Расходы по категориям'!$J:$J,"="&($A20&TEXT(M$4,"ммм-гг")),'Расходы по категориям'!$E:$E) -> 0 | N20: =SUMIF('Благотворительность,Спонсорство'!$L:$L,"="&($A20&TEXT(N$4,"ммм-гг")),'Благотворительность,Спонсорство'!$D:$D)+SUMIF('Расходы по категориям'!$J:$J,"="&($A20&TEXT(N$4,"ммм-гг")),'Расходы по категориям'!$E:$E) -> 0 | O20: =SUM(C20:N20) -> 0
A22: 9000 | B22: Затраты на строительство | C22: =SUMIF('Благотворительность,Спонсорство'!$L:$L,"="&($A22&TEXT(C$4,"ммм-гг")),'Благотворительность,Спонсорство'!$D:$D)+SUMIF('Расходы по категориям'!$J:$J,"="&($A22&TEXT(C$4,"ммм-гг")),'Расходы по категориям'!$E:$E) -> 0 | D22: =SUMIF('Благотворительность,Спонсорство'!$L:$L,"="&($A22&TEXT(D$4,"ммм-гг")),'Благотворительность,Спонсорство'!$D:$D)+SUMIF('Расходы по категориям'!$J:$J,"="&($A22&TEXT(D$4,"ммм-гг")),'Расходы по категориям'!$E:$E) -> 0 | E22: =SUMIF('Благотворительность,Спонсорство'!$L:$L,"="&($A22&TEXT(E$4,"ммм-гг")),'Благотворительность,Спонсорство'!$D:$D)+SUMIF('Расходы по категориям'!$J:$J,"="&($A22&TEXT(E$4,"ммм-гг")),'Расходы по категориям'!$E:$E) -> 0 | F22: =SUMIF('Благотворительность,Спонсорство'!$L:$L,"="&($A22&TEXT(F$4,"ммм-гг")),'Благотворительность,Спонсорство'!$D:$D)+SUMIF('Расходы по категориям'!$J:$J,"="&($A22&TEXT(F$4,"ммм-гг")),'Расходы по категориям'!$E:$E) -> 0 | G22: =SUMIF('Благотворительность,Спонсорство'!$L:$L,"="&($A22&TEXT(G$4,"ммм-гг")),'Благотворительность,Спонсорство'!$D:$D)+SUMIF('Расходы по категориям'!$J:$J,"="&($A22&TEXT(G$4,"ммм-гг")),'Расходы по категориям'!$E:$E) -> 0 | H22: =SUMIF('Благотворительность,Спонсорство'!$L:$L,"="&($A22&TEXT(H$4,"ммм-гг")),'Благотворительность,Спонсорство'!$D:$D)+SUMIF('Расходы по категориям'!$J:$J,"="&($A22&TEXT(H$4,"ммм-гг")),'Расходы по категориям'!$E:$E) -> 0 | I22: =SUMIF('Благотворительность,Спонсорство'!$L:$L,"="&($A22&TEXT(I$4,"ммм-гг")),'Благотворительность,Спонсорство'!$D:$D)+SUMIF('Расходы по категориям'!$J:$J,"="&($A22&TEXT(I$4,"ммм-гг")),'Расходы по категориям'!$E:$E) -> 0 | J22: =SUMIF('Благотворительность,Спонсорство'!$L:$L,"="&($A22&TEXT(J$4,"ммм-гг")),'Благотворительность,Спонсорство'!$D:$D)+SUMIF('Расходы по категориям'!$J:$J,"="&($A22&TEXT(J$4,"ммм-гг")),'Расходы по категориям'!$E:$E) -> 0 | K22: =SUMIF('Благотворительность,Спонсорство'!$L:$L,"="&($A22&TEXT(K$4,"ммм-гг")),'Благотворительность,Спонсорство'!$D:$D)+SUMIF('Расходы по категориям'!$J:$J,"="&($A22&TEXT(K$4,"ммм-гг")),'Расходы по категориям'!$E:$E) -> 0 | L22: =SUMIF('Благотворительность,Спонсорство'!$L:$L,"="&($A22&TEXT(L$4,"ммм-гг")),'Благотворительность,Спонсорство'!$D:$D)+SUMIF('Расходы по категориям'!$J:$J,"="&($A22&TEXT(L$4,"ммм-гг")),'Расходы по категориям'!$E:$E) -> 0 | M22: =SUMIF('Благотворительность,Спонсорство'!$L:$L,"="&($A22&TEXT(M$4,"ммм-гг")),'Благотворительность,Спонсорство'!$D:$D)+SUMIF('Расходы по категориям'!$J:$J,"="&($A22&TEXT(M$4,"ммм-гг")),'Расходы по категориям'!$E:$E) -> 0 | N22: =SUMIF('Благотворительность,Спонсорство'!$L:$L,"="&($A22&TEXT(N$4,"ммм-гг")),'Благотворительность,Спонсорство'!$D:$D)+SUMIF('Расходы по категориям'!$J:$J,"="&($A22&TEXT(N$4,"ммм-гг")),'Расходы по категориям'!$E:$E) -> 0 | O22: =SUM(C22:N22) -> 0
A24: 10000 | B24: Маркетинг | C24: =SUMIF('Благотворительность,Спонсорство'!$L:$L,"="&($A24&TEXT(C$4,"ммм-гг")),'Благотворительность,Спонсорство'!$D:$D)+SUMIF('Расходы по категориям'!$J:$J,"="&($A24&TEXT(C$4,"ммм-гг")),'Расходы по категориям'!$E:$E) -> 0 | D24: =SUMIF('Благотворительность,Спонсорство'!$L:$L,"="&($A24&TEXT(D$4,"ммм-гг")),'Благотворительность,Спонсорство'!$D:$D)+SUMIF('Расходы по категориям'!$J:$J,"="&($A24&TEXT(D$4,"ммм-гг")),'Расходы по категориям'!$E:$E) -> 0 | E24: =SUMIF('Благотворительность,Спонсорство'!$L:$L,"="&($A24&TEXT(E$4,"ммм-гг")),'Благотворительность,Спонсорство'!$D:$D)+SUMIF('Расходы по категориям'!$J:$J,"="&($A24&TEXT(E$4,"ммм-гг")),'Расходы по категориям'!$E:$E) -> 0 | F24: =SUMIF('Благотворительность,Спонсорство'!$L:$L,"="&($A24&TEXT(F$4,"ммм-гг")),'Благотворительность,Спонсорство'!$D:$D)+SUMIF('Расходы по категориям'!$J:$J,"="&($A24&TEXT(F$4,"ммм-гг")),'Расходы по категориям'!$E:$E) -> 0 | G24: =SUMIF('Благотворительность,Спонсорство'!$L:$L,"="&($A24&TEXT(G$4,"ммм-гг")),'Благотворительность,Спонсорство'!$D:$D)+SUMIF('Расходы по категориям'!$J:$J,"="&($A24&TEXT(G$4,"ммм-гг")),'Расходы по категориям'!$E:$E) -> 0 | H24: =SUMIF('Благотворительность,Спонсорство'!$L:$L,"="&($A24&TEXT(H$4,"ммм-гг")),'Благотворительность,Спонсорство'!$D:$D)+SUMIF('Расходы по категориям'!$J:$J,"="&($A24&TEXT(H$4,"ммм-гг")),'Расходы по категориям'!$E:$E) -> 0 | I24: =SUMIF('Благотворительность,Спонсорство'!$L:$L,"="&($A24&TEXT(I$4,"ммм-гг")),'Благотворительность,Спонсорство'!$D:$D)+SUMIF('Расходы по категориям'!$J:$J,"="&($A24&TEXT(I$4,"ммм-гг")),'Расходы по категориям'!$E:$E) -> 0 | J24: =SUMIF('Благотворительность,Спонсорство'!$L:$L,"="&($A24&TEXT(J$4,"ммм-гг")),'Благотворительность,Спонсорство'!$D:$D)+SUMIF('Расходы по категориям'!$J:$J,"="&($A24&TEXT(J$4,"ммм-гг")),'Расходы по категориям'!$E:$E) -> 0 | K24: =SUMIF('Благотворительность,Спонсорство'!$L:$L,"="&($A24&TEXT(K$4,"ммм-гг")),'Благотворительность,Спонсорство'!$D:$D)+SUMIF('Расходы по категориям'!$J:$J,"="&($A24&TEXT(K$4,"ммм-гг")),'Расходы по категориям'!$E:$E) -> 0 | L24: =SUMIF('Благотворительность,Спонсорство'!$L:$L,"="&($A24&TEXT(L$4,"ммм-гг")),'Благотворительность,Спонсорство'!$D:$D)+SUMIF('Расходы по категориям'!$J:$J,"="&($A24&TEXT(L$4,"ммм-гг")),'Расходы по категориям'!$E:$E) -> 0 | M24: =SUMIF('Благотворительность,Спонсорство'!$L:$L,"="&($A24&TEXT(M$4,"ммм-гг")),'Благотворительность,Спонсорство'!$D:$D)+SUMIF('Расходы по категориям'!$J:$J,"="&($A24&TEXT(M$4,"ммм-гг")),'Расходы по категориям'!$E:$E) -> 0 | N24: =SUMIF('Благотворительность,Спонсорство'!$L:$L,"="&($A24&TEXT(N$4,"ммм-гг")),'Благотворительность,Спонсорство'!$D:$D)+SUMIF('Расходы по категориям'!$J:$J,"="&($A24&TEXT(N$4,"ммм-гг")),'Расходы по категориям'!$E:$E) -> 0 | O24: =SUM(C24:N24) -> 0
A26: 11000 | B26: Благотворительность | C26: =SUMIF('Благотворительность,Спонсорство'!$L:$L,"="&($A26&TEXT(C$4,"ммм-гг")),'Благотворительность,Спонсорство'!$D:$D)+SUMIF('Расходы по категориям'!$J:$J,"="&($A26&TEXT(C$4,"ммм-гг")),'Расходы по категориям'!$E:$E) -> 2,500.00р. | D26: =SUMIF('Благотворительность,Спонсорство'!$L:$L,"="&($A26&TEXT(D$4,"ммм-гг")),'Благотворительность,Спонсорство'!$D:$D)+SUMIF('Расходы по категориям'!$J:$J,"="&($A26&TEXT(D$4,"ммм-гг")),'Расходы по категориям'!$E:$E) -> 2,500.00р. | E26: =SUMIF('Благотворительность,Спонсорство'!$L:$L,"="&($A26&TEXT(E$4,"ммм-гг")),'Благотворительность,Спонсорство'!$D:$D)+SUMIF('Расходы по категориям'!$J:$J,"="&($A26&TEXT(E$4,"ммм-гг")),'Расходы по категориям'!$E:$E) -> 2,500.00р. | F26: =SUMIF('Благотворительность,Спонсорство'!$L:$L,"="&($A26&TEXT(F$4,"ммм-гг")),'Благотворительность,Спонсорство'!$D:$D)+SUMIF('Расходы по категориям'!$J:$J,"="&($A26&TEXT(F$4,"ммм-гг")),'Расходы по категориям'!$E:$E) -> 2,500.00р. | G26: =SUMIF('Благотворительность,Спонсорство'!$L:$L,"="&($A26&TEXT(G$4,"ммм-гг")),'Благотворительность,Спонсорство'!$D:$D)+SUMIF('Расходы по категориям'!$J:$J,"="&($A26&TEXT(G$4,"ммм-гг")),'Расходы по категориям'!$E:$E) -> 2,500.00р. | H26: =SUMIF('Благотворительность,Спонсорство'!$L:$L,"="&($A26&TEXT(H$4,"ммм-гг")),'Благотворительность,Спонсорство'!$D:$D)+SUMIF('Расходы по категориям'!$J:$J,"="&($A26&TEXT(H$4,"ммм-гг")),'Расходы по категориям'!$E:$E) -> 2,500.00р. | I26: =SUMIF('Благотворительность,Спонсорство'!$L:$L,"="&($A26&TEXT(I$4,"ммм-гг")),'Благотворительность,Спонсорство'!$D:$D)+SUMIF('Расходы по категориям'!$J:$J,"="&($A26&TEXT(I$4,"ммм-гг")),'Расходы по категориям'!$E:$E) -> 2,500.00р. | J26: =SUMIF('Благотворительность,Спонсорство'!$L:$L,"="&($A26&TEXT(J$4,"ммм-гг")),'Благотворительность,Спонсорство'!$D:$D)+SUMIF('Расходы по категориям'!$J:$J,"="&($A26&TEXT(J$4,"ммм-гг")),'Расходы по категориям'!$E:$E) -> 2,500.00р. | K26: =SUMIF('Благотворительность,Спонсорство'!$L:$L,"="&($A26&TEXT(K$4,"ммм-гг")),'Благотворительность,Спонсорство'!$D:$D)+SUMIF('Расходы по категориям'!$J:$J,"="&($A26&TEXT(K$4,"ммм-гг")),'Расходы по категориям'!$E:$E) -> 2,500.00р. | L26: =SUMIF('Благотворительность,Спонсорство'!$L:$L,"="&($A26&TEXT(L$4,"ммм-гг")),'Благотворительность,Спонсорство'!$D:$D)+SUMIF('Расходы по категориям'!$J:$J,"="&($A26&TEXT(L$4,"ммм-гг")),'Расходы по категориям'!$E:$E) -> 2,500.00р. | M26: =SUMIF('Благотворительность,Спонсорство'!$L:$L,"="&($A26&TEXT(M$4,"ммм-гг")),'Благотворительность,Спонсорство'!$D:$D)+SUMIF('Расходы по категориям'!$J:$J,"="&($A26&TEXT(M$4,"ммм-гг")),'Расходы по категориям'!$E:$E) -> 2,500.00р. | N26: =SUMIF('Благотворительность,Спонсорство'!$L:$L,"="&($A26&TEXT(N$4,"ммм-гг")),'Благотворительность,Спонсорство'!$D:$D)+SUMIF('Расходы по категориям'!$J:$J,"="&($A26&TEXT(N$4,"ммм-гг")),'Расходы по категориям'!$E:$E) -> 2,500.00р. | O26: =SUM(C26:N26) -> 30,000.00р.
A28: 12000 | B28: Спонсорство | C28: =SUMIF('Благотворительность,Спонсорство'!$L:$L,"="&($A28&TEXT(C$4,"ммм-гг")),'Благотворительность,Спонсорство'!$D:$D)+SUMIF('Расходы по категориям'!$J:$J,"="&($A28&TEXT(C$4,"ммм-гг")),'Расходы по категориям'!$E:$E) -> 1,000.00р. | D28: =SUMIF('Благотворительность,Спонсорство'!$L:$L,"="&($A28&TEXT(D$4,"ммм-гг")),'Благотворительность,Спонсорство'!$D:$D)+SUMIF('Расходы по категориям'!$J:$J,"="&($A28&TEXT(D$4,"ммм-гг")),'Расходы по категориям'!$E:$E) -> 1,000.00р. | E28: =SUMIF('Благотворительность,Спонсорство'!$L:$L,"="&($A28&TEXT(E$4,"ммм-гг")),'Благотворительность,Спонсорство'!$D:$D)+SUMIF('Расходы по категориям'!$J:$J,"="&($A28&TEXT(E$4,"ммм-гг")),'Расходы по категориям'!$E:$E) -> 1,000.00р. | F28: =SUMIF('Благотворительность,Спонсорство'!$L:$L,"="&($A28&TEXT(F$4,"ммм-гг")),'Благотворительность,Спонсорство'!$D:$D)+SUMIF('Расходы по категориям'!$J:$J,"="&($A28&TEXT(F$4,"ммм-гг")),'Расходы по категориям'!$E:$E) -> 1,000.00р. | G28: =SUMIF('Благотворительность,Спонсорство'!$L:$L,"="&($A28&TEXT(G$4,"ммм-гг")),'Благотворительность,Спонсорство'!$D:$D)+SUMIF('Расходы по категориям'!$J:$J,"="&($A28&TEXT(G$4,"ммм-гг")),'Расходы по категориям'!$E:$E) -> 1,000.00р. | H28: =SUMIF('Благотворительность,Спонсорство'!$L:$L,"="&($A28&TEXT(H$4,"ммм-гг")),'Благотворительность,Спонсорство'!$D:$D)+SUMIF('Расходы по категориям'!$J:$J,"="&($A28&TEXT(H$4,"ммм-гг")),'Расходы по категориям'!$E:$E) -> 1,000.00р. | I28: =SUMIF('Благотворительность,Спонсорство'!$L:$L,"="&($A28&TEXT(I$4,"ммм-гг")),'Благотворительность,Спонсорство'!$D:$D)+SUMIF('Расходы по категориям'!$J:$J,"="&($A28&TEXT(I$4,"ммм-гг")),'Расходы по категориям'!$E:$E) -> 1,000.00р. | J28: =SUMIF('Благотворительность,Спонсорство'!$L:$L,"="&($A28&TEXT(J$4,"ммм-гг")),'Благотворительность,Спонсорство'!$D:$D)+SUMIF('Расходы по категориям'!$J:$J,"="&($A28&TEXT(J$4,"ммм-гг")),'Расходы по категориям'!$E:$E) -> 1,000.00р. | K28: =SUMIF('Благотворительность,Спонсорство'!$L:$L,"="&($A28&TEXT(K$4,"ммм-гг")),'Благотворительность,Спонсорство'!$D:$D)+SUMIF('Расходы по категориям'!$J:$J,"="&($A28&TEXT(K$4,"ммм-гг")),'Расходы по категориям'!$E:$E) -> 1,000.00р. | L28: =SUMIF('Благотворительность,Спонсорство'!$L:$L,"="&($A28&TEXT(L$4,"ммм-гг")),'Благотворительность,Спонсорство'!$D:$D)+SUMIF('Расходы по категориям'!$J:$J,"="&($A28&TEXT(L$4,"ммм-гг")),'Расходы по категориям'!$E:$E) -> 1,000.00р. | M28: =SUMIF('Благотворительность,Спонсорство'!$L:$L,"="&($A28&TEXT(M$4,"ммм-гг")),'Благотворительность,Спонсорство'!$D:$D)+SUMIF('Расходы по категориям'!$J:$J,"="&($A28&TEXT(M$4,"ммм-гг")),'Расходы по категориям'!$E:$E) -> 1,000.00р. | N28: =SUMIF('Благотворительность,Спонсорство'!$L:$L,"="&($A28&TEXT(N$4,"ммм-гг")),'Благотворительность,Спонсорство'!$D:$D)+SUMIF('Расходы по категориям'!$J:$J,"="&($A28&TEXT(N$4,"ммм-гг")),'Расходы по категориям'!$E:$E) -> 1,000.00р. | O28: =SUM(C28:N28) -> 12,000.00р.
B30: Итого | C30: =SUM(C6:C28) -> 81,075.00р. | D30: 81,075.00р. | E30: 81,075.00р. | F30: 81,075.00р. | G30: 81,075.00р. | H30: 81,075.00р. | I30: 81,075.00р. | J30: 81,075.00р. | K30: 81,075.00р. | L30: 81,075.00р. | M30: 81,075.00р. | N30: 81,075.00р. | O30: 972,900.00р.

Sheet Расходы по категориям
A1: Код главной книги | B1: Дата счета | C1: Счет № | D1: Кем запрошен | E1: Сумма чека | F1: Получатель | G1: Назначение чека | H1: Метод распределения | I1: Дата файла | J1: Поле сконструированного ключа
A2: 1000 | B2: 2005-01-01 | C2: 100 | D2: Энди Тил | E2: 75,075.00р. | F2: Consolidated Messenger | G2: Система рассылки | H2: Почта | I2: 2005-01-04 | J2: =A2&TEXT(B2,"ммм-гг") -> 1000ммм-гг
A3: 7000 | B3: 2005-01-15 | C3: 101 | D3: Роберт Уолтерс | E3: 2,500.00р. | F3: A. Datum Corporation | G3: 2 настольных компьютера | H3: Кредит | I3: 2005-01-20 | J3: 7000ммм-гг
J4: ммм-гг
J5: ммм-гг
J6: ммм-гг
J7: ммм-гг
J8: ммм-гг
J9: ммм-гг
J10: ммм-гг
J11: ммм-гг
J12: ммм-гг
J13: ммм-гг
J14: ммм-гг
J15: ммм-гг
J16: ммм-гг
J17: ммм-гг
J18: ммм-гг
J19: ммм-гг
J20: ммм-гг
J21: ммм-гг
J22: ммм-гг
J23: ммм-гг
J24: ммм-гг
J25: ммм-гг
J26: ммм-гг
J27: ммм-гг
J28: ммм-гг
J29: ммм-гг
J30: ммм-гг
J31: ммм-гг
J32: ммм-гг
J33: ммм-гг
J34: =A34&TEXT(B34,"ммм-гг") -> ммм-гг
J35: ммм-гг
J36: ммм-гг
J37: ммм-гг
J38: ммм-гг
J39: ммм-гг
J40: ммм-гг
J41: ммм-гг
J42: ммм-гг
J43: ммм-гг
J44: ммм-гг
J45: ммм-гг
J46: ммм-гг
J47: ммм-гг
J48: ммм-гг
J49: ммм-гг
J50: ммм-гг
J51: ммм-гг
J52: ммм-гг
J53: ммм-гг
J54: ммм-гг
J55: ммм-гг
J56: ммм-гг
J57: ммм-гг
J58: ммм-гг
J59: ммм-гг
J60: ммм-гг
J61: ммм-гг
J62: ммм-гг
J63: ммм-гг
J64: ммм-гг
J65: ммм-гг
J66: =A66&TEXT(B66,"ммм-гг") -> ммм-гг
J67: ммм-гг
J68: ммм-гг
J69: ммм-гг
J70: ммм-гг
J71: ммм-гг
J72: ммм-гг
J73: ммм-гг
J74: ммм-гг
J75: ммм-гг
J76: ммм-гг
J77: ммм-гг
J78: ммм-гг
J79: ммм-гг
J80: ммм-гг
J81: ммм-гг
J82: ммм-гг
J83: ммм-гг
J84: ммм-гг
J85: ммм-гг
J86: ммм-гг
J87: ммм-гг
J88: ммм-гг
J89: ммм-гг
J90: ммм-гг
J91: ммм-гг
J92: ммм-гг
J93: ммм-гг
J94: ммм-гг
J95: ммм-гг
J96: ммм-гг
J97: ммм-гг
J98: =A98&TEXT(B98,"ммм-гг") -> ммм-гг
J99: ммм-гг
J100: ммм-гг
J101: ммм-гг
J102: ммм-гг
J103: ммм-гг

Sheet Благотворительность,Спонсорство
A1: Код главной книги | B1: Дата запроса чека | C1: Кем запрошен | D1: Сумма чека | E1: Отчисления за предыдущий год | F1: Получатель | G1: Использование | H1: Кем подтверждено | I1: Категория | J1: Метод распределения | K1: Дата файла | L1: Поле сконструированного ключа
A2: 12000 | B2: 2005-01-20 | C2: Сьюзан У. Итон | D2: 1,000.00р. | E2: 0 | F2: Школа изобразительного искусства | G2: Стипендии | H2: Ким Ролс | I2: Гуманитарные науки | J2: Чек | K2: 2005-01-30 | L2: =A2&TEXT(B2,"ммм-гг") -> 12000ммм-гг
A3: 11000 | B3: 2005-02-15 | C3: Сьюзан У. Итон | D3: 2,500.00р. | E3: 0 | F3: Wingtip Toys | G3: Сообщество | H3: Кэти Флуд | I3: Сообщество | J3: Чек | K3: 2005-03-01 | L3: 11000ммм-гг
L4: ммм-гг
L5: ммм-гг
L6: ммм-гг
L7: ммм-гг
L8: ммм-гг
L9: ммм-гг
L10: ммм-гг
L11: ммм-гг
L12: ммм-гг
L13: ммм-гг
L14: ммм-гг
L15: ммм-гг
L16: ммм-гг
L17: ммм-гг
L18: ммм-гг
L19: ммм-гг
L20: ммм-гг
L21: ммм-гг
L22: ммм-гг
L23: ммм-гг
L24: ммм-гг
L25: ммм-гг
L26: ммм-гг
L27: ммм-гг
L28: ммм-гг
L29: ммм-гг
L30: ммм-гг
L31: ммм-гг
L32: ммм-гг
L33: ммм-гг
L34: =A34&TEXT(B34,"ммм-гг") -> ммм-гг
L35: ммм-гг
L36: ммм-гг
L37: ммм-гг
L38: ммм-гг
L39: ммм-гг
L40: ммм-гг
L41: ммм-гг
L42: ммм-гг
L43: ммм-гг
L44: ммм-гг
L45: ммм-гг
L46: ммм-гг
L47: ммм-гг
L48: ммм-гг
L49: ммм-гг
L50: ммм-гг
L51: ммм-гг
L52: ммм-гг
L53: ммм-гг
L54: ммм-гг
L55: ммм-гг
L56: ммм-гг
L57: ммм-гг
L58: ммм-гг
L59: ммм-гг
L60: ммм-гг
L61: ммм-гг
L62: ммм-гг
L63: ммм-гг
L64: ммм-гг
L65: ммм-гг
L66: =A66&TEXT(B66,"ммм-гг") -> ммм-гг
L67: ммм-гг
L68: ммм-гг
L69: ммм-гг
L70: ммм-гг
L71: ммм-гг
L72: ммм-гг
L73: ммм-гг
L74: ммм-гг
L75: ммм-гг
L76: ммм-гг
L77: ммм-гг
L78: ммм-гг
L79: ммм-гг
L80: ммм-гг
L81: ммм-гг
L82: ммм-гг
L83: ммм-гг
L84: ммм-гг
L85: ммм-гг
L86: ммм-гг
L87: ммм-гг
L88: ммм-гг
L89: ммм-гг
L90: ммм-гг
L91: ммм-гг
L92: ммм-гг
L93: ммм-гг
L94: ммм-гг
L95: ммм-гг
L96: ммм-гг
L97: ммм-гг
L98: =A98&TEXT(B98,"ммм-гг") -> ммм-гг
L99: ммм-гг
L100: ммм-гг
L101: ммм-гг
L102: ммм-гг
L103: ммм-гг
L104: ммм-гг
L105: ммм-гг
L106: ммм-гг
L107: ммм-гг
L108: ммм-гг
L109: ммм-гг
